Cogmind - Beta 12 --- EXPLORER MODE // 2023.04.27 @ 13:56:50 Player: Pyjamarama Result: Smashed by cave-in Performance ------------- Evolutions (0) 0 Regions Visited (2) 400 Robots Destroyed (12) 60 Value Destroyed (341) 341 Prototype IDs (1) 20 Alien Tech Used (0) 0 Bonus (0) 0 TOTAL SCORE: 821 Bonus ------- None Cogmind --------- Core Integrity 0/250 Matter 48/400 Energy 69/125 System Corruption 1% Temperature Cool (72) Movement Rolling (90) Location -10/Mines Parts ------- > --- POWER (1) -------- Light Ion Engine > --- PROPULSION (2) --- Wheel Compact Wheel > --- UTILITY (3) ------ Medium Storage Unit Medium Matter Pod Experimental Sensor Array > --- WEAPON (2) ------- Mining Laser Mining Laser > --- INVENTORY (10) --- Medium Matter Pod (0) Improved Terrain Scanner Light Armor Plating Makeshift Shrapnel Gun Mini Grenade Launcher Proton Bomb Trap Proton Bomb Trap Proton Bomb Trap Proton Bomb Trap Peak State ------------ > --- POWER ------------ Light Ion Engine > --- PROPULSION ------- Wheel Compact Wheel > --- UTILITY ---------- Medium Storage Unit Medium Matter Pod Experimental Sensor Array > --- WEAPON ----------- Mining Laser Mining Laser > --- INVENTORY -------- Medium Matter Pod Improved Terrain Scanner Light Armor Plating Makeshift Shrapnel Gun Mini Grenade Launcher Proton Bomb Trap Proton Bomb Trap Proton Bomb Trap Proton Bomb Trap [Rating: 17] Favorites ----------- Power Light Ion Engine Engine Light Ion Engine Propulsion Aluminum Leg Leg Aluminum Leg Wheel Wheel Utility Targeting Computer Device Disposable Heat Sink Storage Medium Matter Pod Processor Targeting Computer Protection Power Shielding Weapon Light Assault Rifle Energy Gun Small Laser Ballistic Gun Light Assault Rifle Launcher Mini Grenade Launcher Special Weapon Mining Laser Build | -11 -10 -10 ------- Run | Jun Mat Min Slots Evolved 1 | . 1 . Power . | . . . Propulsion . | . . . Utility 1 | . 1 . Weapon . | . . . Parts Attached 33 | 7 14 12 Power 5 | 1 3 1 Engine 5 | 1 3 1 Core . | . . . Reactor . | . . . Propulsion 8 | 2 4 2 Treads . | . . . Leg 2 | 2 . . Wheel 6 | . 4 2 Hover . | . . . Flight . | . . . Utility 11 | 2 3 6 Device 3 | . 1 2 Storage 5 | . 1 4 Processor 1 | 1 . . Hackware . | . . . Protection 2 | 1 1 . Artifact . | . . . Weapon 9 | 2 4 3 Energy Gun 2 | . 2 . Energy Cannon . | . . . Ballistic Gun 2 | 2 . . Ballistic Cannon . | . . . Launcher 2 | . 2 . Special Weapon 3 | . . 3 Impact Weapon . | . . . Slashing Weapon . | . . . Piercing Weapon . | . . . Special Melee Weapon . | . . . Unidentified Prototypes 1 | . . 1 Parts Lost 3 | . 3 . Power . | . . . Propulsion 2 | . 2 . Utility . | . . . Weapon 1 | . 1 . Highest Loss Streak 2 | . 2 . To Critical Strikes . | . . . Average Slot Usage (%) 96 | . 95 97 Engine 11 | . 11 11 Leg 10 | . 14 . Wheel 13 | . 10 23 Device 10 | . 9 11 Storage 8 | . 2 24 Processor 7 | . 9 . Protection 8 | . 12 . Energy Gun 7 | . 10 . Ballistic Gun 4 | . 6 . Launcher 4 | . 6 . Special Weapon 6 | . . 24 Naked Turns . | . . . Heaviest Build 18 | 6 18 18 Greatest Support 26 | 3 26 26 Greatest Overweight (x) 4 | 1 4 1 Average Overweight (x) . | . . . Largest Inventory Capacity 10 | 5 10 10 Average Capacity 5 | 5 5 6 Most Carried 9 | 4 5 9 Average Carried 3 | 2 3 4 Final Capacity 10 | 5 10 10 Final Carried 9 | 4 5 9 Class Distribution -------------------- 100% | Hacker-Mutant Dominant Class ---------------- Hacker-Mutant | -10/Materials Hacker-Mutant | -10/Mines Resources | -11 -10 -10 ----------- Run | Jun Mat Min Matter Collected 390 | 293 97 . Remotely . | . . . Salvage Created 378 | 75 303 . Parts 19 | 7 12 . Haulers Intercepted . | . . . Recyclers Shooed 1 | . 1 . Parts Field Recycled . | . . . Retrieved Matter . | . . . Parts Self-Destructed . | . . . Prevented . | . . . Kills | -11 -10 -10 ------- Run | Jun Mat Min Combat Hostiles Destroyed 7 | 1 6 . Guns 5 | 1 4 . AOE 2 | . 2 . Classes Destroyed 5 | 2 3 . Worker 1 | . 1 . Tunneler 2 | 2 . . Recycler 1 | . 1 . Watcher 1 | . 1 . Grunt 7 | 1 6 . Best Kill Streak 4 | 3 4 . Combat Bots Only 2 | 1 2 . Max Kills in Single Turn 1 | 1 1 . Gunslinging . | . . . Exploded 1 | . 1 . Melee . | . . . Uniques/NPCs Destroyed . | . . . Combat | -11 -10 -10 -------- Run | Jun Mat Min Damage Taken 772 | 103 461 208 Core 275 | 32 104 139 Absorbed by Shields . | . . . Redirected to Shielding 17 | . 17 . Core Remaining (%) 87 | 87 . . Volleys Fired 71 | 12 57 2 Largest 2 | 2 2 2 Hottest 200 | 40 70 200 Shots Fired 112 | 23 85 4 Gun 102 | 23 79 . Cannon . | . . . Launcher 6 | . 6 . Special 4 | . . 4 Kinetic 58 | 23 35 . Thermal 48 | . 44 4 Explosive 6 | . 6 . Electromagnetic . | . . . Robot Hit Streak 26 | 10 26 . Robot Miss Streak 1 | 1 1 . Penetration Max . | . . . Secondary Targets . | . . . Shots Hit Robots 96 | 20 76 . Core Hits 30 | 8 22 . Critical Kills . | . . . Critical Parts Destroyed . | . . . Critical Strikes . | . . . Melee Attacks . | . . . Impact . | . . . Slashing . | . . . Piercing . | . . . Sneak Attacks . | . . . Combat Hostiles . | . . . Follow-up Attacks . | . . . Damage Inflicted 1239 | 152 1087 . Guns 790 | 152 638 . Cannons . | . . . Explosions 449 | . 449 . Melee . | . . . Ramming . | . . . Kinetic 386 | 152 234 . Thermal 599 | . 599 . Explosive 254 | . 254 . Electromagnetic . | . . . Impact . | . . . Slashing . | . . . Piercing . | . . . Highest Corruption 1 | . 1 1 Average Corruption 1 | . 1 1 Corruption Purged . | . . . Corruption Blocked . | . . . Effects 7 | . 6 1 Message Errors 2 | . 2 . Matter Fused 1 | . 1 . Parts Rejected 1 | . 1 . Data Loss (minor) 2 | . 1 1 Weapon Failures 1 | . 1 . Overload Shots . | . . . Overflow Damage 68 | . 68 . Projectiles . | . . . Explosions 68 | . 68 . Melee . | . . . Knockbacks . | . . . Impact . | . . . Kinetic . | . . . Secondary . | . . . Self-Inflicted Damage 110 | . 110 . Shots 3 | . 3 . Rammed . | . . . Targets Rammed . | . . . Kicked . | . . . Crushed . | . . . Highest Temperature 195 | 1 195 72 Average Temperature 52 | 1 58 38 Received Heat Transfer 471 | 96 375 . Siege Activations . | . . . Robots Corrupted . | . . . Combat Hostiles . | . . . Parts Fried . | . . . Impact Corruptions . | . . . Robots Melted . | . . . Combat Hostiles . | . . . Parts Melted 4 | . 4 . Heat Transferred 1025 | . 1025 . Parts Sabotaged . | . . . Parts Stolen . | . . . Parts Stripped . | . . . Power Chain Reactions . | . . . Missiles Intercepted . | . . . Alert | -11 -10 -10 ------- Run | Jun Mat Min Peak Influence 267 | 30 267 5 Initial 14 | . 14 4 Average 64 | 4 101 4 Maximum Alert Level 1 | . 1 . Low Security (%) 89 | 100 82 100 Level 1 10 | . 17 . Level 2 . | . . . Level 3 . | . . . Level 4 . | . . . Level 5 . | . . . High Security . | . . . Max Security . | . . . Squads Dispatched 1 | . 1 . Investigation 1 | . 1 . Extermination . | . . . Reinforcement . | . . . Assault . | . . . Garrison . | . . . Intercept . | . . . Searches Triggered . | . . . Construction Impeded . | . . . Haulers Reinforced . | . . . Active Scanning Responses . | . . . Cargo Convoy Interrupts . | . . . Stealth | -11 -10 -10 --------- Run | Jun Mat Min Distress Signals . | . . . Communications Jammed . | . . . Distress Signals . | . . . Times Spotted 13 | 1 12 . Peak Tracking Total 3 | 1 3 . Tactical Retreats . | . . . Traps | -11 -10 -10 ------- Run | Jun Mat Min Traps Triggered 2 | . 2 . Indirectly . | . . . Trap Hack Attempts . | . . . Triggered . | . . . Disarmed . | . . . Reprogrammed . | . . . Reused . | . . . Traps Extracted . | . . . Installed . | . . . Triggered . | . . . Most Traps Carried 4 | . . 4 Machines | -11 -10 -10 ---------- Run | Jun Mat Min Machines Disabled 4 | . 4 . Max in Single Turn 3 | . 3 . Machines Repaired . | . . . Machines Sabotaged . | . . . Overloaded Fab Kills . | . . . Hacking | -11 -10 -10 --------- Run | Jun Mat Min Machines Accessed 3 | . 3 . Terminals 2 | . 2 . Fabricators . | . . . Repair Stations . | . . . Recycling Units 1 | . 1 . Scanalyzers . | . . . Garrison Access . | . . . Total Hacks 10 | . 10 . Successful 8 | . 8 . Failed 2 | . 2 . Catastrophic . | . . . Database Lockouts . | . . . Manual . | . . . Terminals 8 | . 8 . Fabricators . | . . . Repair Stations . | . . . Recycling Units 2 | . 2 . Scanalyzers . | . . . Garrison Access . | . . . Terminal Hacks 6 | . 6 . Record 3 | . 3 . Alert Level 1 | . 1 . Locate Traps 1 | . 1 . Maintenance Status 1 | . 1 . Fabricator Hacks . | . . . Repair Station Hacks . | . . . Recycling Unit Hacks 2 | . 2 . Recycle Component 2 | . 2 . Scanalyzer . | . . . Garrison Access Hacks . | . . . Unauthorized Hacks . | . . . Terminals . | . . . Fabricators . | . . . Repair Stations . | . . . Recycling Units . | . . . Scanalyzers . | . . . Garrison Access . | . . . Data Cores Recovered . | . . . Used . | . . . Hacking Detections 3 | . 3 . Full Trace Events 1 | . 1 . Feedback Events . | . . . Feedback Blocked . | . . . Robot Schematics Acquired . | . . . Robots Built . | . . . Authchips . | . . . Time . | . . . Total Robot Build Rating . | . . . Part Schematics Acquired . | . . . Parts Built . | . . . Authchips . | . . . Time . | . . . Total Part Build Rating . | . . . Parts Repaired . | . . . Time . | . . . Parts Recycled 2 | . 2 . Recycled Matter . | . . . Retrieved Matter . | . . . Retrieved Components . | . . . Parts Scanalyzed . | . . . Part Schematics Acquired . | . . . Parts Damaged . | . . . Bothacking | -11 -10 -10 ------------ Run | Jun Mat Min Used RIF Installer . | . . . Robots Hacked . | . . . Non-combat . | . . . Combat . | . . . Robot Hacks Applied . | . . . Relay Couplers Released . | . . . Fabnet Peak Effective % . | . . . Robots Rewired . | . . . Allies Hacked . | . . . Hacks Repelled . | . . . Allies | -11 -10 -10 -------- Run | Jun Mat Min Total Allies . | . . . Largest Group . | . . . Highest-Rated Group . | . . . Highest-Rated Ally . | . . . Total Orders . | . . . Ally Attacks . | . . . Total Damage . | . . . Kills . | . . . Allies Corrupted . | . . . Allies Melted . | . . . Intel | -11 -10 -10 ------- Run | Jun Mat Min Robot Analysis Total . | . . . Derelict Logs Recovered . | . . . Drone Launches . | . . . Drone Recoveries . | . . . Exploration | -11 -10 -10 ------------- Run | Jun Mat Min Turns Passed 752 | 110 467 175 Spaces Moved 495 | 80 267 148 Core 118 | 80 34 4 Treads . | . . . Legs 140 | . 140 . Wheels 237 | . 93 144 Hover . | . . . Flight . | . . . Fastest Speed 50 | 50 80 90 Average Speed 100 | 77 112 90 Slowest Speed 250 | 100 250 100 Overloaded Moves . | . . . Propulsion Burnouts . | . . . Robots Hopped . | . . . Cave-ins Triggered 1 | . . 1 Exploration Rate (%) 27 | 5 41 35 Regions Visited 2 Branch Regions 1 Pre-discovered Areas . | . . . Known Exits Taken 2 | 1 1 . Unknown Exits Taken . | . . . Scrap Searched . | . . . Spaces Dug 4 | . . 4 Terrain Destroyed 88 | . 84 4 Melee . | . . . Projectile 4 | . . 4 AOE 84 | . 84 . Terrain Rammed . | . . . Walls Destroyed . | . . . Machines Disabled . | . . . Actions | -11 -10 -10 --------- Run | Jun Mat Min Total 640 | 109 352 179 Wait . | . . . Move 493 | 79 266 148 Hop . | . . . Pick Up 41 | 11 15 15 Fast Attach . | . . . Attach 31 | 7 12 12 Detach 1 | . . 1 Swap 2 | . 2 . Drop 1 | . . 1 Fire 71 | 12 57 2 Melee . | . . . Ram . | . . . Kick . | . . . Crush . | . . . Escape Stasis . | . . . Rewire . | . . . Trap . | . . . Miscellaneous . | . . . Route ------- -11/Junkyard -10/Materials (discovered 2 exits: *Mat / *Min) -10/Mines History --------- Turn | Location | Event 2 | -11/Junkyard | Met Revision 17 53 | -11/Junkyard | Identified exit to Materials 53 | -11/Junkyard | Discovered exit to Materials (range 8) 111 | -11/Junkyard | Entered Materials 111 | -10/Materials | Evolved 1 slot: Utility x1 305 | -10/Materials | Build established: Hacker-Mutant 395 | -10/Materials | Identified exit to Materials 395 | -10/Materials | Discovered exit to Materials (range 16) 437 | -10/Materials | Core integrity fell below 50% 493 | -10/Materials | Released all parts (8) 556 | -10/Materials | Identified exit to Mines 556 | -10/Materials | Discovered exit to Mines (range 5) 578 | -10/Materials | Entered Mines 580 | -10/Mines | Released all parts (8) 599 | -10/Mines | Met a Derelict bent on vengeance 653 | -10/Mines | A weapon hastily lodged in a ceiling crevice suddenly fell to the ground 698 | -10/Mines | Found a hidden stash of uninstalled traps 734 | -10/Mines | Found a damaged Exp. Sensor Array with a note attached 736 | -10/Mines | Found Prototype Device 737 | -10/Mines | Identified Exp. Sensor Array 754 | -10/Mines | Crushed by falling debris 754 | -10/Mines | Smashed by cave-in Last Messages --------------- Acquired Proton Bomb Trap. Dropped Med. Matter Pod. Acquired Proton Bomb Trap. Acquired Med. Matter Pod. Acquired Proton Bomb Trap. A damaged part is partially visible under some rubble. There's a note attached: "Everyone keeps telling us we should avoid high-traffic areas because that's where patrols are more likely to show up, but that doesn't do us much good if we can't spot those areas until they're on top of us... With this we can! Deliver it to Megawrench for repairs then we'll never be afraid of an ambush while sneaking around Materials again, ha." Acquired Prototype Device. Identified Exp. Sensor Array. [Achievement: Risk Taker] System corrupted: Component data lost. The unstable cave ceiling collapses. Crushed by falling debris. [Achievement: Unlikely Earthworm] [Achievement: First Step to Greatness] Map ----- +----------------------------------------------------+ | ???????# ## #???# ## ##?????? | | ???????# #??# #?# ##????#?? | | ???????## # ##?# ##??# #???????? | | ????????### ## #??# ??#### #???????? | | ??????????## #### #?### ???# #???????? | | ???????????# ##??# #???##??#?# ####???????? | | ???????????# #???# #??######## ##?????????? | | ??????????## ##???# #???# #??????????? | | ??????????# #????# ##??# #?????????#? | | ??????????# ##????# #??## #######??????#???? | | ??????????# #?????# ##??# #?????####???????? | | ??????????# #???### ##### #???## #?#????? | | ??????????# #??## #### ???????? | | ????????#?# #### ????????? | | ??????????# #?????? | | ??????##??# ##?????? | | ??????????##### ## ##?#????? | | ??????????????## ##?? ###???????? | | ???????????????## ##???##??#??????? | | ????????????????# #### ####??#????????? | | ?????????????#### ##??## ##?#????????? | | ????????????## #??#?# #??????????? | | ????????????# ##????# ##?????????? | | ???????????# ##?????## ##?????????? | | ??????????# ########### #????????#? | | ??????????# ##### ;@## ##????????? | | ??????????## #### # ## #????????? | | ???????????###### ## ## #????????? | | ???????????????# ###### #?#??????? | | ????????????#### #????## #????????? | | ?????? #?????## #????????? | | ?????????########## ######### ##???????# | | ??????????????????## #???????? | | ???????????????????# #???????? | | ???????????#???????# ######### #???????? | | ???????????????????# #???????# #???????? | | ???????????????????## ##???????## ##???????? | | ????????????????????####????????#?###????#???? | | ?????????????????????????????????????????????? | | ???????????????????????????#?????????????????? | | ?????????????????????????????????????????????? | | | | | | | | | | | | | | | | | | | +----------------------------------------------------+ Best States ------------- Heat Dissipation 25 Coolant Potential 50 Energy Generation 10 Energy Capacity 250 Matter Stores 300 Matter Capacity 500 Sight Range 16 Robot Scan Range 20 Terrain Scan Range 16 Terrain Scan Density 10 Armor Coverage 150 Resistance: KI 35 Resistance: TH 35 Resistance: EX 35 Resistance: EM 35 Resistance: I 35 Resistance: S 35 Resistance: P 35 Power Shielding 33 Evasion (%) 55 Targeting Accuracy 5 Offensive Hacking 20 Item Schematics ----------------- None Robot Schematics ------------------ None Fabricated ------------ Nothing Alien Tech Used ----------------- None Achievements -------------- Crack Shot First Step to Greatness One Hack Too Far Risk Taker Unlikely Earthworm Challenges ------------ None Game ------ Seed ScanTrapRouter Manual? 0 Play Time 00:37:12 Cumulative 2.1 hours Start 2023.04.27 @ 13:12:26 End 2023.04.27 @ 13:56:50 Sessions 1 Manual Loads 0 Difficulty Explorer Special Mode None Game No. 2 Rogue 1 Adventurer 0 Explorer 1 Win Type - Total 0 Types 0/0/0/0/0/0/0/0/0 Lore% 0 Gallery% 3 Achievement% 1 Wizard Run 0 Options --------- ASCII 0 Keyboard 0 Movement Mouse Keybinds 0 Fullscreen 0 Font 16/SmallcapsGlow Map View 75x55 Tactical HUD 0 Map Filters NONE Filters NONE Steam 1 RUN: f6638e68-888b-4dc7-903f-ab13cb605d35